Cogmind - Beta 13 @@@ ROGUE MODE // 2024.03.31 @ 13:43:53 Player: deezy Result: Destroyed by S-10 Pest with Light Assault Rifle Performance ------------- Evolutions (1) 500 Regions Visited (2) 400 Robots Destroyed (11) 55 Value Destroyed (283) 283 Prototype IDs (0) 0 Alien Tech Used (0) 0 Bonus (0) 0 TOTAL SCORE: 1238 Bonus ------- None Cogmind --------- Core Integrity 0/400 Matter 280/300 Energy 100/100 System Corruption 17% Temperature Cool (0) Movement Walking (120) Location -9/Materials Parts ------- > --- POWER (1) -------- (None) > --- PROPULSION (3) --- Aluminum Leg > --- UTILITY (3) ------ (None) > --- WEAPON (2) ------- (None) > --- INVENTORY (5) ---- Ion Engine Heavy Ion Engine Heavy Ion Engine Grenade Launcher Peak State ------------ > --- POWER ------------ Ion Engine > --- PROPULSION ------- Light Treads Light Treads > --- UTILITY ---------- Large Storage Unit Sensor Array > --- WEAPON ----------- Heavy Assault Rifle Plasma Cutter > --- INVENTORY -------- Ion Engine Heavy Ion Engine Heavy Ion Engine Heavy Ion Engine Signal Interpreter Grenade Launcher Grenade Launcher [Rating: 10] Favorites ----------- Power Ion Engine Engine Ion Engine Propulsion Light Treads Treads Light Treads Leg Aluminum Leg Utility Small Storage Unit Device Sensor Array Storage Small Storage Unit Weapon Beam Rifle Energy Gun Beam Rifle Ballistic Gun Light Assault Rifle Special Weapon Plasma Cutter Build | -11 -10 -9 ------- Run | Yrd Mat Mat Slots Evolved 2 | . . 2 Power . | . . . Propulsion 1 | . . 1 Utility 1 | . . 1 Weapon . | . . . Parts Attached 12 | . 7 5 Power . | . . . Engine . | . . . Core . | . . . Reactor . | . . . Propulsion 6 | . 3 3 Treads 3 | . 3 . Leg 3 | . . 3 Wheel . | . . . Hover . | . . . Flight . | . . . Utility 2 | . 2 . Device 1 | . 1 . Storage 1 | . 1 . Processor . | . . . Hackware . | . . . Protection . | . . . Artifact . | . . . Weapon 4 | . 2 2 Energy Gun 1 | . 1 . Energy Cannon . | . . . Ballistic Gun 2 | . 1 1 Ballistic Cannon . | . . . Launcher . | . . . Special Weapon 1 | . . 1 Impact Weapon . | . . . Slashing Weapon . | . . . Piercing Weapon . | . . . Special Melee Weapon . | . . . Unidentified Prototypes . | . . . Parts Lost 9 | . . 9 Power 1 | . . 1 Propulsion 4 | . . 4 Utility 1 | . . 1 Weapon 3 | . . 3 Highest Loss Streak 6 | . . 6 To Critical Strikes 1 | . . 1 Average Slot Usage (%) 72 | . 84 58 Engine 11 | . 14 8 Treads 22 | . 27 16 Leg 1 | . . 3 Device 6 | . 4 8 Storage 11 | . 14 8 Energy Gun 9 | . 12 5 Ballistic Gun 9 | . 10 8 Naked Turns 14 | . . 14 Heaviest Build 30 | 13 30 30 Greatest Support 40 | 20 40 40 Greatest Overweight (x) 9 | . . 9 Average Overweight (x) . | . . . Largest Inventory Capacity 15 | 8 15 15 Average Capacity 10 | 8 8 12 Most Carried 8 | 6 8 8 Average Carried 6 | 6 6 6 Final Capacity 15 | 8 15 5 Final Carried 7 | 6 7 4 Class Distribution -------------------- 100% | Mutant Dominant Class ---------------- Mutant | -10/Materials Mutant | -9/Materials Resources | -11 -10 -9 ----------- Run | Yrd Mat Mat Matter Collected 315 | 200 80 35 Remotely . | . . . Salvage Created 350 | . 193 157 Parts 28 | . 23 5 Haulers Intercepted . | . . . Recyclers Shooed . | . . . Parts Field Recycled . | . . . Retrieved Matter . | . . . Parts Self-Destructed . | . . . Prevented . | . . . Kills | -11 -10 -9 ------- Run | Yrd Mat Mat Combat Hostiles Destroyed 8 | . 5 3 Guns 7 | . 5 2 Classes Destroyed 4 | . 3 1 Watcher 3 | . 3 . Swarmer 3 | . 3 . Grunt 3 | . 2 1 Sentry 2 | . . 2 Best Kill Streak 3 | . 3 1 Combat Bots Only 3 | . 3 1 Max Kills in Single Turn 1 | . 1 1 Gunslinging . | . . . Exploded . | . . . Melee . | . . . Uniques/NPCs Destroyed . | . . . Combat | -11 -10 -9 -------- Run | Yrd Mat Mat Hostile Shots Fired 201 | . 30 171 Missed 68 | . 13 55 Damage Taken 1470 | . 164 1306 Core 426 | . 18 408 Absorbed by Shields . | . . . Regen/Repaired (Parts) 36 | . 36 . Core Remaining (%) 96 | 100 92 . Volleys Fired 50 | . 33 17 Largest 2 | . 2 2 Hottest 76 | . 76 76 Shots Fired 89 | . 56 33 Gun 89 | . 56 33 Cannon . | . . . Launcher . | . . . Special . | . . . Kinetic 39 | . 23 16 Thermal 50 | . 33 17 Explosive . | . . . Electromagnetic . | . . . Robot Hit Streak 7 | . 6 7 Robot Miss Streak 4 | . 4 2 Penetration Max . | . . . Secondary Targets . | . . . Shots Hit Robots 54 | . 30 24 Core Hits 20 | . 14 6 Critical Kills . | . . . Critical Parts Destroyed . | . . . Critical Strikes 4 | . 1 3 Burn 4 | . 1 3 Melee Attacks . | . . . Impact . | . . . Slashing . | . . . Piercing . | . . . Sneak Attacks . | . . . Combat Hostiles . | . . . Follow-up Attacks . | . . . Damage Inflicted 659 | . 372 287 Guns 648 | . 372 276 Cannons . | . . . Explosions . | . . . Melee . | . . . Ramming 11 | . . 11 Kinetic 215 | . 109 106 Thermal 433 | . 263 170 Explosive . | . . . Electromagnetic . | . . . Impact . | . . . Slashing . | . . . Piercing . | . . . Highest Corruption 17 | . . 17 Average Corruption 15 | . . 15 Corruption Purged . | . . . Corruption Blocked . | . . . Effects 6 | . . 6 Heat Flow Errors 1 | . . 1 Data Loss (minor) 3 | . . 3 Data Loss (major) 1 | . . 1 Misdirections 1 | . . 1 Overload Shots . | . . . Overflow Damage . | . . . Projectiles . | . . . Explosions . | . . . Melee . | . . . Knockbacks . | . . . Impact . | . . . Kinetic . | . . . Secondary . | . . . Self-Inflicted Damage . | . . . Shots . | . . . Rammed 5 | . . 5 Targets Rammed 5 | . . 5 Kicked . | . . . Crushed . | . . . Highest Temperature 125 | . 125 118 Average Temperature 49 | . 47 54 Received Heat Transfer 327 | . 45 282 Siege Activations . | . . . Robots Corrupted . | . . . Combat Hostiles . | . . . Parts Fried . | . . . Impact Corruptions . | . . . Robots Melted 1 | . . 1 Combat Hostiles 1 | . . 1 Parts Melted 3 | . . 3 Heat Transferred 1406 | . 740 666 Parts Sabotaged . | . . . Parts Stolen . | . . . Parts Stripped . | . . . Power Chain Reactions . | . . . Alert | -11 -10 -9 ------- Run | Yrd Mat Mat Peak Influence 190 | . 190 133 Initial 8 | . . 8 Average 75 | . 71 88 Maximum Alert Level . | . . . Low Security (%) 100 | 100 100 100 Level 1 . | . . . Level 2 . | . . . Level 3 . | . . . Level 4 . | . . . Level 5 . | . . . High Security . | . . . Max Security . | . . . Squads Dispatched 2 | . . 2 Investigation . | . . . Extermination . | . . . Reinforcement 2 | . . 2 Assault . | . . . Garrison . | . . . Intercept . | . . . Searches Triggered . | . . . Construction Impeded . | . . . Haulers Reinforced . | . . . Active Scanning Responses . | . . . Cargo Convoy Interrupts . | . . . Stealth | -11 -10 -9 --------- Run | Yrd Mat Mat Distress Signals 4 | . 1 3 Communications Jammed . | . . . Distress Signals . | . . . Times Spotted 33 | . 13 20 Peak Tracking Total 13 | . 5 13 Tactical Retreats 2 | . 1 1 Traps | -11 -10 -9 ------- Run | Yrd Mat Mat Traps Triggered . | . . . Indirectly . | . . . Trap Hack Attempts . | . . . Triggered . | . . . Disarmed . | . . . Reprogrammed . | . . . Reused . | . . . Traps Extracted . | . . . Installed . | . . . Triggered . | . . . Machines | -11 -10 -9 ---------- Run | Yrd Mat Mat Machines Disabled . | . . . Max in Single Turn . | . . . Machines Repaired . | . . . Machines Dismantled . | . . . Machines Sabotaged . | . . . Overloaded Fab Kills . | . . . Hacking | -11 -10 -9 --------- Run | Yrd Mat Mat Machines Accessed 3 | . 2 1 Terminals 2 | . 1 1 Fabricators . | . . . Repair Stations 1 | . 1 . Recycling Units . | . . . Scanalyzers . | . . . Garrison Access . | . . . Total Hacks 7 | . 4 3 Successful 2 | . 2 . Failed 5 | . 2 3 Catastrophic 1 | . . 1 Database Lockouts . | . . . Manual 3 | . . 3 Terminals 5 | . 2 3 Fabricators . | . . . Repair Stations 2 | . 2 . Recycling Units . | . . . Scanalyzers . | . . . Garrison Access . | . . . Terminal Hacks . | . . . Fabricator Hacks . | . . . Repair Station Hacks 2 | . 2 . Scan Component 1 | . 1 . Repair 1 | . 1 . Recycling Unit Hacks . | . . . Scanalyzer . | . . . Garrison Access Hacks . | . . . Unauthorized Hacks . | . . . Terminals . | . . . Fabricators . | . . . Repair Stations . | . . . Recycling Units . | . . . Scanalyzers . | . . . Garrison Access . | . . . Data Cores Recovered . | . . . Used . | . . . Hacking Detections 2 | . 1 1 Full Trace Events 2 | . 1 1 Feedback Events . | . . . Feedback Blocked . | . . . Robot Schematics Acquired . | . . . Robots Built . | . . . Authchips . | . . . Time . | . . . Total Robot Build Rating . | . . . Part Schematics Acquired . | . . . Parts Built . | . . . Authchips . | . . . Time . | . . . Total Part Build Rating . | . . . Parts Repaired 1 | . 1 . Time 13 | . 13 . Parts Recycled . | . . . Recycled Matter . | . . . Retrieved Matter . | . . . Retrieved Components . | . . . Parts Scanalyzed . | . . . Part Schematics Acquired . | . . . Parts Damaged . | . . . Bothacking | -11 -10 -9 ------------ Run | Yrd Mat Mat Used RIF Installer . | . . . Robots Hacked . | . . . Non-combat . | . . . Combat . | . . . Robot Hacks Applied . | . . . Relay Couplers Released . | . . . Fabnet Peak Effective % . | . . . Robots Rewired . | . . . Allies Hacked . | . . . Hacks Repelled . | . . . Allies | -11 -10 -9 -------- Run | Yrd Mat Mat Total Allies . | . . . Largest Group . | . . . Highest-Rated Group . | . . . Highest-Rated Ally . | . . . Total Orders . | . . . Ally Attacks . | . . . Total Damage . | . . . Kills . | . . . Allies Corrupted . | . . . Allies Melted . | . . . Intel | -11 -10 -9 ------- Run | Yrd Mat Mat Robot Analysis Total . | . . . Derelict Logs Recovered . | . . . Drone Launches . | . . . Drone Recoveries . | . . . Exploration | -11 -10 -9 ------------- Run | Yrd Mat Mat Turns Passed 841 | 31 447 363 Spaces Moved 443 | 26 213 204 Core 26 | . . 26 Treads 336 | . 205 131 Legs 81 | 26 8 47 Wheels . | . . . Hover . | . . . Flight . | . . . Fastest Speed 50 | 120 120 50 Average Speed 149 | 120 158 143 Slowest Speed 500 | 120 160 500 Overloaded Moves . | . . . Propulsion Burnouts . | . . . Robots Hopped . | . . . Cave-ins Triggered . | . . . Exploration Rate (%) 18 | 2 24 29 Regions Visited 2 Branch Regions . Pre-discovered Areas . | . . . Known Exits Taken . | . . . Unknown Exits Taken 2 | 1 1 . Scrap Searched . | . . . Spaces Dug . | . . . Terrain Destroyed . | . . . Melee . | . . . Projectile . | . . . AOE . | . . . Terrain Rammed . | . . . Walls Destroyed . | . . . Machines Disabled . | . . . Actions | -11 -10 -9 --------- Run | Yrd Mat Mat Total 545 | 25 278 242 Wait . | . . . Move 441 | 25 212 204 Hop . | . . . Pick Up 20 | . 14 6 Fast Attach . | . . . Attach 11 | . 6 5 Detach 2 | . 1 1 Swap 1 | . 1 . Drop 15 | . 11 4 Fire 50 | . 33 17 Melee . | . . . Ram . | . . . Kick . | . . . Crush 5 | . . 5 Escape Stasis . | . . . Rewire . | . . . Trap . | . . . Miscellaneous . | . . . Route ------- -11/Scrapyard -10/Materials (discovered 2 exits: *Mat / [*Min]) -9/Materials (discovered 1 exit: [*Sto]) History --------- Turn | Location | Event 1 | -11/Scrapyard | Discovered new exit (range 3) 32 | -11/Scrapyard | Entered Materials 89 | -10/Materials | Discovered new exit (range 16) 236 | -10/Materials | Repaired Lgt. Treads 317 | -10/Materials | Build established: Mutant 367 | -10/Materials | Discovered new exit (range 16) 479 | -10/Materials | Entered another Materials area 479 | -9/Materials | Evolved 2 slots: Propulsion x1, Utility x1 601 | -9/Materials | Discovered new exit (range 16) 754 | -9/Materials | System corruption reached 10% 781 | -9/Materials | Core integrity fell below 50% 798 | -9/Materials | Lost 6 parts (1p2n1u2w) 799 | -9/Materials | Core integrity fell below 20% 842 | -9/Materials | Destroyed by S-10 Pest with Light Assault Rifle Last Messages --------------- 00755_ Knocked back. 00757_ K-01 Serf cleans the Terminal. 00767_ Hvy. Assault Rifle destroyed. 00767_ System corrupted by crushing effect (+4). 00767_ Dropped Lrg. Storage Unit. 00768_ System corrupted: Substantial component data lost. 00769_ K-01 Serf cleans the Terminal. 00771_ W-16 Scout sends out distress signal. 00779_ Dropped Signal Interpreter. 00780_ Acquired Aluminum Leg. 00787_ System corrupted: Component data lost. 00787_ Acquired Aluminum Leg. 00801_ W-16 Scout sends out distress signal. 00805_ M-13 Machinist repairs G-34 Mercenary. 00806_ Aluminum Leg destroyed. 00808_ System corrupted: Component data lost. 00814_ Aluminum Leg destroyed. 00828_ W-16 Scout sends out distress signal. 00832_ System corrupted: Heat flow error (+117). Map ----- +----------------------------------------------------+ | ????????????????????????????????# # | | ???????????????????###########??## # | | ???????????????????# #???# """ # | | ???????????????????# """ """ #???# """ # | | ???????????????????# """ """ #???# """ # | | ???????????????????# """ """ #???# # | | ???????????????????# #########/#### | | ???????????????????# [ / | | ???????????????????# ######## ! | | ???????????????????# #??????# | | ?????????????????#######/############ | | ?????????????????# | | ?????????????????# | | ?????????????????# """"" | | ?????????????????# """"" ############### | | ?????????????????# """""gk #?????????????? | | ?????????????????# s s #?????????????? | | ?????????????????# s g#?????????????? | | ?????????????????# b #?????????????? | | ?????????????????# [!#?????????????? | | ?????????????????#[[[ !!#?????????????? | | ?????????????????#[[^ #?????????????? | | ?????????????????#[[[ #?????????????? | | ?????????????????# #?????????????? | | ??????????##t##### #?????????????? | | ??????????# r@ ????????? | | ??????????# "Y" ????????? | | ??????????# Y """ ????????? | | ??????????+ #####+###########+##+???????? | | ??????????# ?????????????????????????????? | | ??????????# ??????????????????????????????? | | ??????????#???????????????????????????????? | | ??????????????????????????????????????????? | | ??????????????????????????????????????????? | | ??????????????????????????????????????????? | | ??????????????????????????????????????????? | | ??????????????????????????????????????????? | | ??????????????????????????????????????????? | | ??????????????????????????????????????????? | | ??????????????????????????????????????????? | | ??????????????????????????????????????????? | | ??????????????????????????????????????????? | | ??????????????????????????????????????????? | | ??????????????????????????????????????????? | | ??????????????????????????????????????????? | | ??????????????????????????????????????????? | | ??????????????????????????????????????????? | | ??????????????????????????????????????????? | | ??????????????????????????????????????????? | | ??????????????????????????????????????????? | +----------------------------------------------------+ Best States ------------- Heat Dissipation 28 Energy Generation 10 Energy Capacity 250 Matter Stores 300 Matter Capacity 300 Sight Range 16 Robot Scan Range 14 Terrain Scan Density 10 Evasion (%) 55 Recoil Reduction 2 Item Schematics ----------------- None Robot Schematics ------------------ None Fabricated ------------ Nothing Alien Tech Used ----------------- None Achievements -------------- It's Just You Challenges ------------ None Game ------ Seed BladeDimensionalFlail Manual? 0 Play Time 00:20:25 Cumulative 7.1 hours Start 2024.03.31 @ 13:22:51 End 2024.03.31 @ 13:43:53 Sessions 1 Manual Loads 0 Difficulty Rogue Special Mode None Game No. 19 Rogue 19 Adventurer 0 Explorer 0 Win Type - Total 0 Types 0/0/0/0/0/0/0/0/0 Lore% 16 Gallery% 11 Achievement% 14 Wizard Run 0 Options --------- Layout 1 ASCII 0 Keyboard 1 Movement Numpad Keybinds 0 Fullscreen 1 Font 32/Terminus Map View 50x35 Zoom Use 1% Tactical HUD 1 Map Filters NONE Filters NONE Steam 1 RUN: d9b3b9d3-ce14-42d5-932b-4934d64ce112